fUSD/lending_fUSD_20240104
["ID","MTS","AMOUNT","RATE_DAILY","PERIOD"]
[310133570,1704379872543,-500.0,0.00033698,2]
[310133571,1704379872553,-500.0,0.00033698,2]
[310133572,1704379872563,-500.0,0.00033698,2]
[310133573,1704379872572,-500.0,0.00033698,2]
[310133574,1704379872582,-1343.23,0.00033698,2]
[310133575,1704379872592,-500.0,0.00033698,2]
[310133576,1704379872601,-500.0,0.00033698,2]
[310133577,1704379872610,-500.0,0.00033698,2]
[310133578,1704379872620,-500.0,0.00033698,2]
[310133579,1704379872630,-1921.23,0.00033698,2]
[310133580,1704379872640,-1082.21,0.00033698,2]
[310133581,1704379872649,-514.34,0.00033698,2]
[310133582,1704379872658,-500.0,0.00033698,2]
[310133583,1704379872668,-500.0,0.00033698,2]
[310133584,1704379872678,-500.0,0.00033698,2]
[310133585,1704379872687,-500.0,0.00033698,2]
[310133586,1704379872697,-500.0,0.00033698,2]
[310133587,1704379872706,-500.0,0.00033698,2]
[310133588,1704379872720,-255.71332778,0.00033698,2]
[310133589,1704379872730,-500.0,0.00033698,2]
[310133590,1704379872740,-500.0,0.00033698,2]
[310133591,1704379872750,-293.25,0.00033698,2]
[310133592,1704379872759,-500.76,0.00033698,2]
[310133593,1704379872769,-560.5,0.00033698,2]
[310133594,1704379872779,-500.0,0.00033698,2]
[310133595,1704379872788,-500.0,0.00033698,2]
[310133596,1704379872798,-500.0,0.00033698,2]
[310133597,1704379872808,-500.0,0.00033698,2]
[310133598,1704379872817,-500.0,0.00033698,2]
[310133599,1704379872827,-747.05,0.00033698,2]
[310133600,1704379872836,-598.02,0.00033698,2]
[310133601,1704379872846,-644.97104445,0.00033698,2]
[310133602,1704379872855,-956.94,0.00033698,2]
[310133603,1704379872865,-900.32,0.00033698,2]
[310133604,1704379872874,-500.0,0.00033698,2]
[310133605,1704379872884,-500.0,0.00033698,2]
[310133606,1704379872893,-282.07770611,0.00033698,2]
[310133607,1704379872903,-431.36205862,0.00033698,2]
[310133608,1704379872912,-508.24,0.00033698,2]
[310133609,1704379872921,-674.57,0.00033698,2]
[310133610,1704379872931,-500.0,0.00033698,2]
[310133611,1704379872940,-500.0,0.00033698,2]
[310133612,1704379872950,-500.0,0.00033698,2]
[310133613,1704379872961,-500.0,0.00033698,2]
[310133614,1704379872970,-500.0,0.00033698,2]
[310133615,1704379872979,-500.0,0.00033698,2]
[310133616,1704379872989,-500.0,0.00033698,2]
[310133617,1704379872999,-500.0,0.00033698,2]
[310133618,1704379873009,-500.0,0.00033698,2]
[310133619,1704379873018,-500.0,0.00033698,2]
[310133620,1704379873029,-1096.25,0.00033698,2]
[310133621,1704379873040,-500.0,0.00033698,2]
[310133622,1704379873049,-500.0,0.00033698,2]
[310133623,1704379873059,-500.0,0.00033698,2]
[310133624,1704379873069,-921.29,0.00033698,2]
[310133625,1704379873078,-500.0,0.00033698,2]
[310133626,1704379873088,-500.0,0.00033698,2]
[310133627,1704379873098,-555.3,0.00033698,2]
[310133628,1704379873107,-500.0,0.00033698,2]
[310133629,1704379873118,-2229.59,0.00033698,2]
[310133630,1704379873128,-500.0,0.00033698,2]
[310133631,1704379873138,-543.17,0.00033698,2]
[310133632,1704379873148,-11597.14,0.00033698,2]
[310133633,1704379873159,-500.0,0.00033698,2]
[310133634,1704379873169,-500.0,0.00033698,2]
[310133635,1704379873179,-500.0,0.00033698,2]
[310133636,1704379873189,-1426.32,0.00033698,2]
[310133637,1704379873198,-656.25,0.00033698,2]
[310133638,1704379873208,-500.0,0.00033698,2]
[310133639,1704379873409,-500.0,0.00033698,2]
[310133640,1704379873420,-500.0,0.00033698,2]
[310133641,1704379873431,-500.0,0.00033698,2]
[310133642,1704379873440,-500.0,0.00033698,2]
[310133643,1704379873450,-558.21562527,0.00033698,2]
[310133644,1704379873459,-500.0,0.00033698,2]
[310133645,1704379873470,-500.0,0.00033698,2]
[310133646,1704379873480,-500.0,0.00033698,2]
[310133647,1704379873490,-500.0,0.00033698,2]
[310133648,1704379873500,-500.0,0.00033698,2]
[310133649,1704379873510,-975.89,0.00033698,2]
[310133650,1704379873519,-500.0,0.00033698,2]
[310133651,1704379873529,-4656.18,0.00033698,2]
[310133652,1704379873539,-1479.88,0.00033698,2]
[310133653,1704379873548,-500.0,0.00033698,2]
[310133654,1704379873558,-500.0,0.00033698,2]
[310133655,1704379873567,-500.0,0.00033698,2]
[310133656,1704379873577,-500.0,0.00033698,2]
[310133657,1704379873586,-853.53,0.00033698,2]
[310133658,1704379873595,-500.0,0.00033698,2]
[310133659,1704379873604,-500.0,0.00033698,2]
[310133660,1704379873614,-500.0,0.00033698,2]
[310133661,1704379873623,-5589.01,0.00033698,2]
[310133662,1704379873633,-500.0,0.00033698,2]
[310133663,1704379873643,-2629.66,0.00033698,2]
[310133664,1704379873653,-500.0,0.00033698,2]
[310133665,1704379873663,-452.99694498,0.00033698,2]
[310133666,1704379873673,-943.4,0.00033698,2]
[310133667,1704379873682,-1350.66,0.00033698,2]
[310133668,1704379873695,-979.91,0.00033698,2]
[310133669,1704379873704,-500.0,0.00033698,2]
[310133670,1704379873715,-762.49,0.00033698,2]
[310133671,1704379873724,-3743.26,0.00033698,2]
[310133672,1704379873734,-367.32665739,0.00033698,2]
[310133673,1704379873746,-843.44,0.00033698,2]
[310133674,1704379873755,-500.0,0.00033698,2]
[310133675,1704379873765,-500.0,0.00033698,2]
[310133676,1704379873774,-500.0,0.00033698,2]
[310133677,1704379873784,-500.0,0.00033698,2]
[310133678,1704379873793,-3435.39,0.00033698,2]
[310133679,1704379873803,-1798.08,0.00033698,2]
[310133680,1704379873812,-960.59,0.00033698,2]
[310133681,1704379873821,-500.0,0.00033698,2]
[310133682,1704379873830,-981.13,0.00033698,2]
[310133683,1704379873840,-11476.76,0.00033698,2]
[310133684,1704379873849,-500.0,0.00033698,2]
[310133685,1704379873858,-6221.49,0.00033698,2]
[310133686,1704379873868,-500.0,0.00033698,2]
[310133687,1704379873877,-500.0,0.00033698,2]
[310133688,1704379873886,-500.0,0.00033698,2]
[310133689,1704379873895,-500.0,0.00033698,2]
[310133690,1704379873905,-7112.65,0.00033698,2]
[310133691,1704379873914,-500.0,0.00033698,2]
[310133692,1704379873923,-808.53,0.00033698,2]
[310133693,1704379873932,-1507.3,0.00033698,2]
[310133694,1704379873942,-1094.55,0.00033698,2]
[310133695,1704379873952,-1880.68,0.00033698,2]
[310133696,1704379873963,-3044.9,0.00033698,2]
[310133697,1704379873972,-500.0,0.00033698,2]
[310133698,1704379873981,-500.0,0.00033698,2]
[310133699,1704379873991,-1520.93,0.00033698,2]
[310133700,1704379874002,-714.53,0.00033698,2]
[310133701,1704379874012,-500.0,0.00033698,2]
[310133702,1704379874023,-500.0,0.00033698,2]
[310133703,1704379874033,-500.0,0.00033698,2]
[310133704,1704379874044,-1046.93,0.00033698,2]
[310133705,1704379874056,-709.58,0.00033698,2]
[310133706,1704379874066,-982.36,0.00033698,2]
[310133707,1704379874077,-500.0,0.00033698,2]
[310133708,1704379874087,-3659.95,0.00033698,2]
[310133709,1704379874097,-500.0,0.00033698,2]
[310133710,1704379874108,-500.0,0.00033698,2]
[310133711,1704379874124,-524.34,0.00033698,2]
[310133712,1704379874133,-14819.02,0.00033698,2]
[310133713,1704379874147,-1004.62,0.00033698,2]
[310133714,1704379874158,-1526.09,0.00033698,2]
[310133715,1704379874168,-500.0,0.00033698,2]
[310133716,1704379874178,-1505.64,0.00033698,2]
[310133717,1704379874189,-934.38,0.00033698,2]
[310133718,1704379874199,-500.0,0.00033698,2]
[310133719,1704379874213,-533.98179265,0.00033698,2]
[310133720,1704379874226,-1050.36,0.00033698,2]
[310133721,1704379874237,-500.0,0.00033698,2]
[310133722,1704379874247,-500.0,0.00033698,2]
[310133723,1704379874256,-500.0,0.00033698,2]
[310133724,1704379874274,-500.0,0.00033698,2]
[310133725,1704379874284,-500.0,0.00033698,2]
[310133726,1704379874300,-5243.39,0.00033698,2]
[310133727,1704379874311,-2099.31,0.00033698,2]
[310133728,1704379874321,-500.0,0.00033698,2]
[310133729,1704379874330,-614.39,0.00033698,2]
[310133730,1704379874341,-500.0,0.00033698,2]
[310133731,1704379874351,-500.0,0.00033698,2]
[310133732,1704379874361,-560.17,0.00033698,2]
[310133733,1704379874372,-500.0,0.00033698,2]
[310133734,1704379874383,-500.0,0.00033698,2]
[310133735,1704379874393,-2632.74,0.00033698,2]
[310133736,1704379874403,-500.0,0.00033698,2]
[310133737,1704379874414,-2658.03,0.00033698,2]
[310133738,1704379874424,-991.74,0.00033698,2]
[310133739,1704379874434,-500.0,0.00033698,2]
[310133740,1704379874444,-500.0,0.00033698,2]
[310133741,1704379874455,-676.47,0.00033698,2]
[310133742,1704379874470,-791.89,0.00033698,2]
[310133743,1704379874480,-500.0,0.00033698,2]
[310133744,1704379874491,-500.0,0.00033698,2]
[310133745,1704379874501,-500.0,0.00033698,2]
[310133746,1704379874511,-500.0,0.00033698,2]
[310133747,1704379874521,-7185.58,0.00033698,2]
[310133748,1704379874531,-602.38,0.00033698,2]
[310133749,1704379874541,-500.0,0.00033698,2]
[310133750,1704379874551,-565.11,0.00033698,2]
[310133751,1704379874562,-500.0,0.00033698,2]
[310133752,1704379874572,-793.66,0.00033698,2]
[310133753,1704379874582,-24948.91,0.00033698,2]
[310133754,1704379874591,-500.0,0.00033698,2]
[310133755,1704379874601,-673.61,0.00033698,2]
[310133756,1704379874611,-500.0,0.00033698,2]
[310133757,1704379874621,-792.12,0.00033698,2]
[310133758,1704379874631,-1302.06,0.00033698,2]
[310133759,1704379874641,-1417.01,0.00033698,2]
[310133760,1704379874650,-8974.7,0.00033698,2]
[310133761,1704379874660,-500.0,0.00033698,2]
[310133762,1704379874671,-500.0,0.00033698,2]
[310133763,1704379874681,-604.98,0.00033698,2]
[310133764,1704379874691,-1470.26,0.00033698,2]
[310133765,1704379874701,-546.98,0.00033698,2]
[310133766,1704379874715,-500.0,0.00033698,2]
[310133767,1704379874725,-500.0,0.00033698,2]
[310133768,1704379874735,-500.0,0.00033698,2]
[310133769,1704379874748,-500.0,0.00033698,2]
[310133770,1704379874759,-1575.12,0.00033698,2]
[310133771,1704379874777,-500.0,0.00033698,2]
[310133772,1704379874787,-944.91,0.00033698,2]
[310133773,1704379874799,-500.0,0.00033698,2]
[310133774,1704379874809,-500.0,0.00033698,2]
[310133775,1704379874821,-500.0,0.00033698,2]
[310133776,1704379874830,-500.0,0.00033698,2]
[310133777,1704379874840,-500.0,0.00033698,2]
[310133778,1704379874850,-1253.76,0.00033698,2]
[310133779,1704379874859,-500.0,0.00033698,2]
[310133780,1704379874869,-6159.64,0.00033698,2]
[310133781,1704379874880,-500.0,0.00033698,2]
[310133782,1704379874892,-200.86823642,0.00033698,2]
[310133783,1704379874902,-1663.56,0.00033698,2]
[310133784,1704379874917,-3912.93,0.00033698,2]
[310133785,1704379874927,-500.0,0.00033698,2]
[310133786,1704379874938,-797.64,0.00033698,2]
[310133787,1704379874949,-500.0,0.00033698,2]
[310133788,1704379874962,-591.60035956,0.00033698,2]
[310133789,1704379874972,-500.0,0.00033698,2]
[310133790,1704379874983,-500.0,0.00033698,2]
[310133791,1704379874993,-500.0,0.00033698,2]
[310133792,1704379875004,-1328.73,0.00033698,2]
[310133793,1704379875014,-500.0,0.00033698,2]
[310133794,1704379875024,-500.0,0.00033698,2]
[310133795,1704379875049,-500.0,0.00033698,2]
[310133796,1704379875060,-1221.19,0.00033698,2]
[310133797,1704379875070,-211.24162566,0.00033698,2]
[310133798,1704379875081,-8027.58,0.00033698,2]
[310133799,1704379875091,-607.09,0.00033698,2]
[310133800,1704379875102,-897.24,0.00033698,2]
[310133801,1704379875112,-776.16,0.00033698,2]
[310133802,1704379875122,-1088.44,0.00033698,2]
[310133803,1704379875132,-500.0,0.00033698,2]
[310133804,1704379875142,-792.37,0.00033698,2]
[310133805,1704379875152,-13895.34,0.00033698,2]
[310133806,1704379875163,-500.0,0.00033698,2]
[310133807,1704379875172,-1153.53,0.00033698,2]
[310133808,1704379875182,-500.0,0.00033698,2]
[310133809,1704379875191,-569.73,0.00033698,2]
[310133810,1704379875216,-500.0,0.00033698,2]
[310133811,1704379875226,-725.92,0.00033698,2]
[310133812,1704379875242,-500.0,0.00033698,2]
[310133813,1704379875254,-500.0,0.00033698,2]
[310133814,1704379875264,-500.0,0.00033698,2]
[310133815,1704379875273,-824.62,0.00033698,2]
[310133816,1704379875282,-500.0,0.00033698,2]
[310133817,1704379875293,-4012.2,0.00033698,2]
[310133818,1704379875304,-690.73,0.00033698,2]
[310133819,1704379875313,-500.0,0.00033698,2]
[310133820,1704379875322,-500.0,0.00033698,2]
[310133821,1704379875331,-500.0,0.00033698,2]
[310133822,1704379875341,-500.0,0.00033698,2]
[310133823,1704379875351,-2066.06,0.00033698,2]
[310133824,1704379875361,-500.0,0.00033698,2]
[310133825,1704379875370,-500.0,0.00033698,2]
[310133826,1704379875380,-3083.56,0.00033698,2]
[310133827,1704379875391,-500.0,0.00033698,2]
[310133828,1704379875400,-726.46,0.00033698,2]
[310133829,1704379875410,-674.77,0.00033698,2]
[310133830,1704379875419,-998.68,0.00033698,2]
[310133831,1704379875428,-500.0,0.00033698,2]
[310133832,1704379875438,-2984.78,0.00033698,2]
[310133833,1704379875448,-500.0,0.00033698,2]
[310133834,1704379875457,-2196.5,0.00033698,2]
[310133835,1704379875470,-745.15,0.00033698,2]
[310133836,1704379875480,-500.0,0.00033698,2]
[310133837,1704379875489,-1113.73,0.00033698,2]
[310133838,1704379875498,-500.0,0.00033698,2]
[310133839,1704379875507,-1097.92,0.00033698,2]
[310133840,1704379875517,-777.35,0.00033698,2]
[310133841,1704379875527,-1211.84,0.00033698,2]
[310133842,1704379875537,-500.0,0.00033698,2]
[310133843,1704379875546,-2090.69,0.00033698,2]
[310133844,1704379875556,-500.0,0.00033698,2]
[310133845,1704379875565,-1275.77,0.00033698,2]
[310133846,1704379875574,-500.0,0.00033698,2]
[310133847,1704379875583,-515.0,0.00033698,2]
[310133848,1704379875593,-9328.57,0.00033698,2]
[310133849,1704379875602,-2938.41,0.00033698,2]
[310133850,1704379875611,-515.28,0.00033698,2]
[310133851,1704379875620,-1696.21,0.00033698,2]
[310133852,1704379875630,-500.0,0.00033698,2]
[310133853,1704379875640,-500.0,0.00033698,2]
[310133854,1704379875649,-1158.55,0.00033698,2]
[310133855,1704379875659,-746.87,0.00033698,2]
[310133856,1704379875669,-500.0,0.00033698,2]
[310133857,1704379875678,-500.0,0.00033698,2]
[310133858,1704379875687,-585.65,0.00033698,2]
[310133859,1704379875697,-500.0,0.00033698,2]
[310133860,1704379875707,-1243.16,0.00033698,2]
[310133861,1704379875718,-1162.34,0.00033698,2]
[310133862,1704379875728,-500.0,0.00033698,2]
[310133863,1704379875737,-2032.71,0.00033698,2]
[310133864,1704379875747,-517.77,0.00033698,2]
[310133865,1704379875757,-500.0,0.00033698,2]
[310133866,1704379875766,-500.0,0.00033698,2]
[310133867,1704379875776,-584.75,0.00033698,2]
[310133868,1704379875786,-806.38,0.00033698,2]
[310133869,1704379875795,-500.0,0.00033698,2]
[310133870,1704379875804,-500.0,0.00033698,2]
[310133871,1704379875814,-674.03,0.00033698,2]
[310133872,1704379875823,-500.0,0.00033698,2]
[310133873,1704379875833,-1367.76,0.00033698,2]
[310133874,1704379875842,-812.81,0.00033698,2]
[310133875,1704379875851,-1267.95,0.00033698,2]
[310133876,1704379875861,-500.0,0.00033698,2]
[310133877,1704379875870,-500.0,0.00033698,2]
[310133878,1704379875879,-500.0,0.00033698,2]
[310133879,1704379875888,-500.0,0.00033698,2]
[310133880,1704379875897,-500.0,0.00033698,2]
[310133881,1704379875906,-500.0,0.00033698,2]
[310133882,1704379875915,-2136.74,0.00033698,2]
[310133883,1704379875924,-500.0,0.00033698,2]
[310133884,1704379875934,-1613.02,0.00033698,2]
[310133885,1704379875943,-500.0,0.00033698,2]
[310133886,1704379875953,-921.0,0.00033698,2]
[310133887,1704379875962,-500.0,0.00033698,2]
[310133888,1704379875972,-6778.32,0.00033698,2]
[310133889,1704379875981,-500.0,0.00033698,2]
[310133890,1704379875990,-564.94,0.00033698,2]
[310133891,1704379875999,-5937.95,0.00033698,2]
[310133892,1704379876007,-605.3,0.00033698,2]
[310133893,1704379876017,-1863.72,0.00033698,2]
[310133894,1704379876026,-767.99,0.00033698,2]
[310133895,1704379876035,-500.0,0.00033698,2]
[310133896,1704379876044,-1006.87,0.00033698,2]
[310133897,1704379876054,-2780.42,0.00033698,2]
[310133898,1704379876063,-3378.06,0.00033698,2]
[310133899,1704379876073,-2104.92,0.00033698,2]
[310133900,1704379876083,-500.0,0.00033698,2]
[310133901,1704379876093,-675.56,0.00033698,2]
[310133902,1704379876103,-500.0,0.00033698,2]
[310133903,1704379876112,-500.0,0.00033698,2]
[310133904,1704379876121,-555.7500691,0.00033698,2]
[310133905,1704379876131,-1448.56,0.00033698,2]
[310133906,1704379876140,-841.6,0.00033698,2]
[310133907,1704379876150,-500.0,0.00033698,2]
[310133908,1704379876160,-500.0,0.00033698,2]
[310133909,1704379876169,-500.0,0.00033698,2]
[310133910,1704379876179,-561.79,0.00033698,2]
[310133911,1704379876188,-628.57,0.00033698,2]
[310133912,1704379876197,-958.91,0.00033698,2]
[310133913,1704379876206,-500.0,0.00033698,2]
[310133914,1704379876216,-543.21,0.00033698,2]
[310133915,1704379876226,-500.0,0.00033698,2]
[310133916,1704379876240,-938.81,0.00033698,2]
[310133917,1704379876249,-500.0,0.00033698,2]
[310133918,1704379876259,-500.0,0.00033698,2]
[310133919,1704379876270,-887.96,0.00033698,2]
[310133920,1704379876280,-574.22,0.00033698,2]
[310133921,1704379876289,-199.97826236,0.00033698,2]
[310133922,1704379876299,-500.0,0.00033698,2]
[310133923,1704379876308,-3849.25,0.00033698,2]
[310133924,1704379876317,-500.0,0.00033698,2]
[310133925,1704379876326,-1711.45,0.00033698,2]
[310133926,1704379876335,-500.0,0.00033698,2]
[310133927,1704379876345,-10588.74,0.00033698,2]
[310133928,1704379876354,-500.0,0.00033698,2]
[310133929,1704379876364,-500.0,0.00033698,2]
[310133930,1704379876374,-606.27,0.00033698,2]
[310133931,1704379876383,-758.93,0.00033698,2]
[310133932,1704379876392,-500.0,0.00033698,2]
[310133933,1704379876402,-606.01,0.00033698,2]
[310133934,1704379876411,-500.0,0.00033698,2]
[310133935,1704379876420,-1198.57,0.00033698,2]
[310133936,1704379876429,-5079.07,0.00033698,2]
[310133937,1704379876438,-500.0,0.00033698,2]
[310133938,1704379876447,-500.0,0.00033698,2]
[310133939,1704379876456,-939.72,0.00033698,2]
[310133940,1704379876466,-500.0,0.00033698,2]
[310133941,1704379876475,-1196.63,0.00033698,2]
[310133942,1704379876485,-500.0,0.00033698,2]
[310133943,1704379876494,-1608.64,0.00033698,2]
[310133944,1704379876503,-540.84,0.00033698,2]
[310133945,1704379876513,-3816.66,0.00033698,2]
[310133946,1704379876521,-555.32,0.00033698,2]
[310133947,1704379876531,-598.45,0.00033698,2]
[310133948,1704379876540,-500.0,0.00033698,2]
[310133949,1704379876549,-500.0,0.00033698,2]
[310133950,1704379876558,-912.45,0.00033698,2]
[310133951,1704379876567,-435.50988128,0.00033698,2]
[310133952,1704379877284,-64.49011872,0.00033698,2]
[310133953,1704379877294,-500.0,0.00033698,2]
[310133954,1704379877304,-397.64686617,0.00033698,2]
[310133955,1704379877521,-500.0,0.0003315,2]
[310133956,1704379877531,-90.70837532,0.00033698,2]
[310133957,1704379877541,-1611.63,0.00033698,2]
[310133958,1704379877551,-1094.2,0.00033698,2]
[310133959,1704379877561,-500.0,0.00033698,2]
[310133960,1704379877570,-500.0,0.00033698,2]
[310133961,1704379877579,-500.0,0.00033698,2]
[310133962,1704379877589,-500.0,0.00033698,2]
[310133963,1704379877599,-4156.42,0.00033698,2]
[310133964,1704379877609,-500.0,0.00033698,2]
[310133965,1704379877618,-500.0,0.00033698,2]
[310133966,1704379877628,-500.0,0.00033698,2]
[310133967,1704379877637,-500.0,0.00033698,2]
[310133968,1704379877647,-500.0,0.00033698,2]
[310133969,1704379877656,-1567.8,0.00033698,2]
[310133970,1704379877666,-500.0,0.00033698,2]
[310133971,1704379877676,-500.0,0.00033698,2]
[310133972,1704379877684,-500.0,0.00033698,2]
[310133973,1704379877694,-2129.56,0.00033698,2]
[310133974,1704379877703,-500.0,0.00033698,2]
[310133975,1704379877714,-500.0,0.00033698,2]
[310133976,1704379877723,-500.0,0.00033698,2]
[310133977,1704379877733,-500.0,0.00033698,2]
[310133978,1704379877743,-576.69,0.00033698,2]
[310133979,1704379877754,-500.0,0.00033698,2]
[310133980,1704379877763,-500.0,0.00033698,2]
[310133981,1704379877774,-151.0,0.00033698,7]
[310133982,1704379877783,-151.0,0.00033698,7]
[310133983,1704379877793,-151.0,0.00033698,7]
[310133984,1704379877804,-151.0,0.00033698,7]
[310133985,1704379877814,-624.01,0.00033701,2]
[310133986,1704379877824,-240.53,0.00033745,2]
[310133987,1704379877833,-529.94868816,0.00033772,6]
[310133988,1704379877843,-5823.664259,0.000338,2]
[310133989,1704379877853,-153.84,0.00033821,2]
[310133990,1704379877862,-153.39,0.00033863,2]
[310133991,1704379877872,-624.01,0.00033864,2]
[310133992,1704379877882,-187.96847185,0.00033872,2]
[310133993,1704379877892,-397.53608247,0.00033872,2]
[310133994,1704379877902,-301.0,0.000339,23]
[310133995,1704379877913,-1505.43023482,0.00033902,2]
[310133996,1704379877923,-2992.85244245,0.00033903,2]
[310133997,1704379877932,-2755.3362525,0.00033903,2]
[310133998,1704379877942,-1506.37504979,0.00033904,2]
[310133999,1704379877951,-2716.69496242,0.00033905,2]
[310134000,1704379877960,-2985.92929574,0.00033905,2]
[310134001,1704379877974,-730.78331437,0.00033905,2]
[310134002,1704379877984,-2986.81832831,0.00033906,2]
[310134003,1704379877994,-2985.27654972,0.00033906,2]
[310134004,1704379878005,-2541.87544655,0.00033909,2]
[310134005,1704379878016,-2991.35712928,0.00033909,2]
[310134006,1704379878026,-2712.44484288,0.0003391,2]
[310134007,1704379878036,-2984.90019109,0.00033911,2]
[310134008,1704379878046,-1987.2338911,0.00033912,2]
[310134009,1704379878055,-2986.09067104,0.00033912,2]
[310134010,1704379878065,-1260.79456679,0.00033913,2]
[310134011,1704379878434,-548.90819327,0.00032876,2]
[310134012,1704379878444,-500.0,0.00032876,2]
[310134013,1704379878454,-547.73,0.00032876,2]
[310134014,1704379878464,-2136.27,0.0003315,2]
[310134015,1704379878475,-500.0,0.0003315,2]
[310134016,1704379878484,-547.73,0.0003315,2]
[310134017,1704379878494,-2136.27,0.00033424,2]
[310134018,1704379878503,-500.0,0.00033424,2]
[310134019,1704379878512,-547.73,0.00033424,2]
[310134020,1704379878522,-500.0,0.00033698,2]
[310134021,1704379878531,-1523.20754366,0.00033698,2]
[310134022,1704379878557,-613.06245634,0.00033698,2]
[310134023,1704379878566,-500.0,0.00033698,2]
[310134024,1704379878576,-101.75631149,0.00033913,2]
[310134025,1704379878588,-1280.95068248,0.00033913,2]
[310134026,1704379878598,-2843.08390652,0.00033913,2]
[310134027,1704379878607,-2802.95201829,0.00033914,2]
[310134028,1704379878617,-2903.9302075,0.00033915,2]
[310134029,1704379878627,-2986.94997218,0.00033915,2]
[310134030,1704379878636,-2514.02003804,0.00033916,2]
[310134031,1704379878646,-2606.91529094,0.00033916,2]
[310134032,1704379878655,-2985.10507694,0.00033917,2]
[310134033,1704379878664,-2986.46495606,0.00033918,2]
[310134034,1704379878674,-2811.6035611,0.00033919,2]
[310134035,1704379878684,-2987.31599649,0.00033919,2]
[310134036,1704379878693,-2985.98061149,0.0003392,2]
[310134037,1704379878703,-2207.41847813,0.0003392,2]
[310134038,1704379878713,-2986.57562054,0.00033922,2]
[310134039,1704379878725,-2499.90241877,0.00033923,2]
[310134040,1704379878735,-2530.9308253,0.00033924,2]
[310134041,1704379878747,-2986.51487742,0.00033924,2]
[310134042,1704379878758,-2969.92791442,0.00033925,2]
[310134043,1704379878768,-2680.81615641,0.00033925,2]
[310134044,1704379878778,-2986.0081133,0.00033927,2]
[310134045,1704379878788,-2826.22312759,0.00033927,2]
[310134046,1704379878798,-2342.05763608,0.00033929,2]
[310134047,1704379878807,-2985.7489934,0.00033929,2]
[310134048,1704379878818,-2741.39903773,0.0003393,2]
[310134049,1704379878827,-2992.01543469,0.00033931,2]
[310134050,1704379878837,-2745.81093548,0.00033931,2]
[310134051,1704379878847,-2842.64296584,0.00033932,2]
[310134052,1704379878857,-1500.57057153,0.00033934,2]
[310134053,1704379878866,-2864.93515908,0.00033934,2]
[310134054,1704379878876,-2970.73260175,0.00033934,2]
[310134055,1704379878886,-2844.43954681,0.00033935,2]
[310134056,1704379878895,-2646.97538968,0.00033935,2]
[310134057,1704379878906,-2991.06231619,0.00033937,2]
[310134058,1704379878916,-2849.42374855,0.00033937,2]
[310134059,1704379878925,-2991.68232984,0.00033942,2]
[310134060,1704379878935,-2985.5834666,0.00033943,2]
[310134061,1704379878944,-2836.26703924,0.00033944,2]
[310134062,1704379878954,-2995.21501805,0.00033944,2]
[310134063,1704379878964,-2725.52313651,0.00033945,2]
[310134064,1704379878977,-2985.48201051,0.00033945,2]
[310134065,1704379878987,-2704.43758272,0.00033945,2]
[310134066,1704379878997,-2985.07393481,0.00033946,2]
[310134067,1704379879007,-2987.07037213,0.00033947,2]
[310134068,1704379879016,-2986.88365118,0.0003395,2]
[310134069,1704379879026,-2986.46835854,0.0003395,2]